[Event "SS Manhem Chess Week 2022: Goteborg Open"]
[Site "Schackcentrum, Vegagatan 20, Gothenburg, Sweden"]
[Date "2022.08.14"]
[Round "7.6"]
[White "Johansson, William"]
[Black "Imani Lasaki, Hamed"]
[Result "1-0"]
[TimeControl "15 minutes + 5 seconds per move from move one (Round 1 - 4) / 90 minutes + 30 seconds per move from move one (Round 5 - 8)"]
[WhiteFideId "1744070"]
[BlackFideId "1766970"]
[WhiteElo "2015"]
[BlackElo "1577"]

1. d4 {[%clk 01:30:53]} {[%emt 00:00:06]} d5 {[%clk 01:23:22]} {[%emt
00:07:39]} 2. Nf3 {[%clk 01:31:14]} {[%emt 00:00:09]} Nf6 {[%clk 01:23:40]}
{[%emt 00:00:13]} 3. c3 {[%clk 01:31:36]} {[%emt 00:00:07]} Bf5 {[%clk
01:22:14]} {[%emt 00:01:55]} 4. Qb3 {[%clk 01:31:57]} {[%emt 00:00:10]} b6
{[%clk 01:18:11]} {[%emt 00:04:33]} 5. Bf4 {[%clk 01:31:41]} {[%emt 00:00:45]}
e6 {[%clk 01:14:46]} {[%emt 00:03:55]} 6. e3 {[%clk 01:31:03]} {[%emt
00:01:08]} a6 {[%clk 01:15:04]} {[%emt 00:00:12]} 7. Ne5 {[%clk 01:28:30]}
{[%emt 00:03:03]} Bd6 {[%clk 01:09:58]} {[%emt 00:05:36]} 8. Qa4+ {[%clk
01:27:46]} {[%emt 00:01:14]} Nfd7 {[%clk 01:04:38]} {[%emt 00:05:50]} 9. Bb5
{[%clk 01:27:42]} {[%emt 00:00:34]} Bxe5 {[%clk 01:03:19]} {[%emt 00:01:50]} 10.
Bxe5 {[%clk 01:22:52]} {[%emt 00:05:20]} O-O {[%clk 01:03:34]} {[%emt
00:00:14]} 11. Bg3 {[%clk 01:22:36]} {[%emt 00:00:45]} Nf6 {[%clk 01:02:23]}
{[%emt 00:01:41]} 12. Nd2 {[%clk 01:21:45]} {[%emt 00:01:21]} Nbd7 {[%clk
01:02:03]} {[%emt 00:00:51]} 13. Bc6 {[%clk 01:21:27]} {[%emt 00:00:47]} Ra7
{[%clk 00:59:55]} {[%emt 00:02:38]} 14. O-O {[%clk 01:21:37]} {[%emt 00:00:20]}
Bd3 {[%clk 00:57:11]} {[%emt 00:03:14]} 15. Rfc1 {[%clk 01:13:54]} {[%emt
00:08:13]} b5 {[%clk 00:50:57]} {[%emt 00:06:45]} 16. Qd1 {[%clk 01:13:52]}
{[%emt 00:00:31]} Nb8 {[%clk 00:51:03]} {[%emt 00:00:24]} 17. Nf3 {[%clk
01:13:34]} {[%emt 00:00:47]} Bg6 {[%clk 00:49:22]} {[%emt 00:02:13]} 18. Ne5
{[%clk 01:13:47]} {[%emt 00:00:16]} Nh5 {[%clk 00:49:18]} {[%emt 00:00:34]} 19.
a4 {[%clk 01:13:13]} {[%emt 00:01:04]} Nxg3 {[%clk 00:49:03]} {[%emt 00:00:45]}
20. hxg3 {[%clk 01:13:17]} {[%emt 00:00:25]} Qd6 {[%clk 00:43:53]} {[%emt
00:05:40]} 21. axb5 {[%clk 01:13:21]} {[%emt 00:00:26]} f6 {[%clk 00:42:49]}
{[%emt 00:01:35]} 22. Nxg6 {[%clk 01:13:15]} {[%emt 00:00:35]} hxg6 {[%clk
00:43:17]} {[%emt 00:00:01]} 23. Qa4 {[%clk 01:04:35]} {[%emt 00:09:10]} Nxc6
{[%clk 00:41:50]} {[%emt 00:01:58]} 24. bxc6 {[%clk 01:04:28]} {[%emt
00:00:37]} Rb8 {[%clk 00:39:30]} {[%emt 00:02:51]} 25. c4 {[%clk 01:01:56]}
{[%emt 00:03:02]} Rb4 {[%clk 00:37:10]} {[%emt 00:02:50]} 26. c5 {[%clk
01:01:38]} {[%emt 00:00:48]} Rxa4 {[%clk 00:37:11]} {[%emt 00:00:29]} 27. cxd6
{[%clk 01:01:59]} {[%emt 00:00:09]} Rxa1 {[%clk 00:36:54]} {[%emt 00:00:47]} 28.
Rxa1 {[%clk 01:02:26]} {[%emt 00:00:02]} cxd6 {[%clk 00:37:14]} {[%emt
00:00:11]} 29. b4 {[%clk 01:02:49]} {[%emt 00:00:07]} e5 {[%clk 00:25:10]}
{[%emt 00:12:34]} 30. b5 {[%clk 01:01:45]} {[%emt 00:01:33]} Rc7 {[%clk
00:24:58]} {[%emt 00:00:42]} 31. bxa6 {[%clk 01:00:46]} {[%emt 00:01:29]} Rxc6
{[%clk 00:23:26]} {[%emt 00:02:02]} 32. a7 {[%clk 01:01:08]} {[%emt 00:00:08]}
Rc8 {[%clk 00:23:41]} {[%emt 00:00:15]} 33. a8=Q {[%clk 01:01:32]} {[%emt
00:00:07]} Rxa8 {[%clk 00:24:09]} {[%emt 00:00:02]} 34. Rxa8+ {[%clk 01:01:51]}
{[%emt 00:00:11]} Kf7 {[%clk 00:24:06]} {[%emt 00:00:33]} 35. Ra7+ {[%clk
01:02:14]} {[%emt 00:00:07]} Ke6 {[%clk 00:23:46]} {[%emt 00:00:50]} 36. Rxg7
{[%clk 01:02:35]} {[%emt 00:00:08]} g5 {[%clk 00:23:49]} {[%emt 00:00:27]} 37.
g4 {[%clk 01:02:27]} {[%emt 00:00:38]} e4 {[%clk 00:23:19]} {[%emt 00:01:01]}
38. Kh2 {[%clk 01:02:37]} {[%emt 00:00:19]} f5 {[%clk 00:23:30]} {[%emt
00:00:20]} 39. Rg6+ {[%clk 01:02:56]} {[%emt 00:00:10]} Ke7 {[%clk 00:22:53]}
{[%emt 00:01:07]} 40. gxf5 {[%clk 01:03:18]} {[%emt 00:00:08]} g4 {[%clk
00:23:07]} {[%emt 00:00:16]} 41. Kg3 {[%clk 01:03:41]} {[%emt 00:00:07]} Kd7
{[%clk 00:23:27]} {[%emt 00:00:11]} 42. Kf4 {[%clk 01:04:03]} {[%emt 00:00:08]}
g3 {[%clk 00:23:35]} {[%emt 00:00:21]} 43. fxg3 {[%clk 01:04:19]} {[%emt
00:00:14]} Ke7 {[%clk 00:23:45]} {[%emt 00:00:20]} 44. Kg5 {[%clk 01:04:40]}
{[%emt 00:00:09]} Kd7 {[%clk 00:23:54]} {[%emt 00:00:21]} 45. f6 {[%clk
01:04:56]} {[%emt 00:00:16]} Ke6 {[%clk 00:24:02]} {[%emt 00:00:20]} 46. g4
{[%clk 01:05:15]} {[%emt 00:00:11]} Kf7 {[%clk 00:24:15]} {[%emt 00:00:17]} 47.
Rg7+ {[%clk 01:05:38]} {[%emt 00:00:07]} Kf8 {[%clk 00:23:53]} {[%emt
00:00:52]} 48. Kg6 {[%clk 01:05:51]} {[%emt 00:00:16]} Ke8 {[%clk 00:24:15]}
{[%emt 00:00:09]} 49. f7+ {[%clk 01:06:06]} {[%emt 00:00:15]} Ke7 {[%clk
00:24:38]} {[%emt 00:00:07]} 50. g3 {[%clk 01:06:12]} {[%emt 00:00:25]} Ke6
{[%clk 00:24:51]} {[%emt 00:00:16]} 1-0

[Event "SS Manhem Chess Week 2022: Goteborg Open"]
[Site "Schackcentrum, Vegagatan 20, Gothenburg, Sweden"]
[Date "2022.08.14"]
[Round "7.7"]
[White "Fransson, Lennart"]
[Black "Westlund, Tim"]
[Result "0-1"]
[TimeControl "15 minutes + 5 seconds per move from move one (Round 1 - 4) / 90 minutes + 30 seconds per move from move one (Round 5 - 8)"]
[WhiteFideId "1706756"]
[BlackFideId "1754718"]
[WhiteElo "1958"]
[BlackElo "1760"]

1. c4 {[%clk 01:30:54]} {[%emt 00:00:04]} e5 {[%clk 01:29:07]} {[%emt
00:01:55]} 2. g3 {[%clk 01:31:16]} {[%emt 00:00:07]} Nf6 {[%clk 01:29:30]}
{[%emt 00:00:07]} 3. Nc3 {[%clk 01:31:39]} {[%emt 00:00:06]} d5 {[%clk
01:29:57]} {[%emt 00:00:05]} 4. cxd5 {[%clk 01:32:02]} {[%emt 00:00:07]} Nxd5
{[%clk 01:30:19]} {[%emt 00:00:07]} 5. Bg2 {[%clk 01:32:26]} {[%emt 00:00:05]}
Nb6 {[%clk 01:30:46]} {[%emt 00:00:05]} 6. Nf3 {[%clk 01:32:34]} {[%emt
00:00:21]} Nc6 {[%clk 01:31:11]} {[%emt 00:00:07]} 7. O-O {[%clk 01:32:50]}
{[%emt 00:00:13]} Be7 {[%clk 01:31:36]} {[%emt 00:00:05]} 8. d3 {[%clk
01:32:43]} {[%emt 00:00:36]} O-O {[%clk 01:31:57]} {[%emt 00:00:10]} 9. a3
{[%clk 01:31:08]} {[%emt 00:02:05]} Be6 {[%clk 01:32:17]} {[%emt 00:00:10]} 10.
b4 {[%clk 01:30:53]} {[%emt 00:00:44]} a5 {[%clk 01:26:50]} {[%emt 00:05:58]}
11. b5 {[%clk 01:29:29]} {[%emt 00:01:54]} Nd4 {[%clk 01:26:11]} {[%emt
00:01:10]} 12. Nd2 {[%clk 01:24:41]} {[%emt 00:05:16]} c6 {[%clk 01:21:56]}
{[%emt 00:04:45]} 13. bxc6 {[%clk 01:20:36]} {[%emt 00:04:36]} Nxc6 {[%clk
01:22:13]} {[%emt 00:00:13]} 14. Na4 {[%clk 01:15:13]} {[%emt 00:05:53]} Nd5
{[%clk 01:09:17]} {[%emt 00:13:27]} 15. Rb1 {[%clk 01:10:09]} {[%emt 00:05:34]}
Rb8 {[%clk 01:05:12]} {[%emt 00:04:35]} 16. Bb2 {[%clk 01:00:19]} {[%emt
00:10:19]} b5 {[%clk 00:59:23]} {[%emt 00:06:19]} 17. Nc3 {[%clk 01:00:00]}
{[%emt 00:00:48]} Nxc3 {[%clk 00:57:23]} {[%emt 00:02:30]} 18. Bxc3 {[%clk
00:57:21]} {[%emt 00:03:09]} Bd5 {[%clk 00:55:41]} {[%emt 00:02:11]} 19. Bxd5
{[%clk 00:53:12]} {[%emt 00:04:41]} Qxd5 {[%clk 00:56:05]} {[%emt 00:00:07]} 20.
Bb2 {[%clk 00:53:29]} {[%emt 00:00:12]} Nd4 {[%clk 00:53:07]} {[%emt 00:03:29]}
21. e3 {[%clk 00:47:54]} {[%emt 00:06:04]} Nc6 {[%clk 00:52:08]} {[%emt
00:01:29]} 22. Qb3 {[%clk 00:42:38]} {[%emt 00:05:46]} Qxb3 {[%clk 00:48:12]}
{[%emt 00:04:27]} 23. Nxb3 {[%clk 00:42:53]} {[%emt 00:00:14]} a4 {[%clk
00:47:32]} {[%emt 00:01:10]} 24. Na1 {[%clk 00:41:20]} {[%emt 00:02:03]} b4
{[%clk 00:46:36]} {[%emt 00:01:26]} 25. axb4 {[%clk 00:41:00]} {[%emt
00:00:49]} Bxb4 {[%clk 00:46:32]} {[%emt 00:00:33]} 26. Nc2 {[%clk 00:41:05]}
{[%emt 00:00:26]} Be7 {[%clk 00:46:20]} {[%emt 00:00:42]} 27. Ba3 {[%clk
00:38:32]} {[%emt 00:03:03]} Bxa3 {[%clk 00:44:37]} {[%emt 00:02:13]} 28. Nxa3
{[%clk 00:37:43]} {[%emt 00:01:19]} h6 {[%clk 00:42:16]} {[%emt 00:02:52]} 29.
Rfc1 {[%clk 00:37:46]} {[%emt 00:00:27]} Rxb1 {[%clk 00:41:39]} {[%emt
00:01:07]} 30. Rxb1 {[%clk 00:37:32]} {[%emt 00:00:44]} Rd8 {[%clk 00:41:02]}
{[%emt 00:01:07]} 31. Rd1 {[%clk 00:35:07]} {[%emt 00:02:54]} Kf8 {[%clk
00:38:08]} {[%emt 00:03:24]} 32. Kf1 {[%clk 00:35:25]} {[%emt 00:00:12]} Ke7
{[%clk 00:37:34]} {[%emt 00:01:04]} 33. Ke2 {[%clk 00:35:48]} {[%emt 00:00:07]}
Kd6 {[%clk 00:36:56]} {[%emt 00:01:08]} 34. Rb1 {[%clk 00:33:14]} {[%emt
00:03:04]} Rb8 {[%clk 00:33:13]} {[%emt 00:04:14]} 35. Nc4+ {[%clk 00:22:33]}
{[%emt 00:11:10]} Kc5 {[%clk 00:29:23]} {[%emt 00:04:21]} 36. Ra1 {[%clk
00:22:16]} {[%emt 00:00:46]} Ra8 {[%clk 00:28:06]} {[%emt 00:01:47]} 37. Kd2
{[%clk 00:22:18]} {[%emt 00:00:28]} Na5 {[%clk 00:26:03]} {[%emt 00:02:34]} 38.
Kc3 {[%clk 00:20:06]} {[%emt 00:02:42]} Nxc4 {[%clk 00:25:25]} {[%emt
00:01:08]} 39. dxc4 {[%clk 00:20:33]} {[%emt 00:00:03]} a3 {[%clk 00:24:37]}
{[%emt 00:01:18]} 40. Ra2 {[%clk 00:18:39]} {[%emt 00:02:24]} e4 {[%clk
00:23:28]} {[%emt 00:01:39]} 41. Kb3 {[%clk 00:17:37]} {[%emt 00:01:31]} Ra7
{[%clk 00:20:26]} {[%emt 00:03:33]} 42. Kc3 {[%clk 00:17:40]} {[%emt 00:00:26]}
Rd7 {[%clk 00:19:23]} {[%emt 00:01:34]} 43. Kb3 {[%clk 00:13:32]} {[%emt
00:04:38]} Rd3+ {[%clk 00:18:45]} {[%emt 00:01:09]} 0-1

[Event "SS Manhem Chess Week 2022: Goteborg Open"]
[Site "Schackcentrum, Vegagatan 20, Gothenburg, Sweden"]
[Date "2022.08.14"]
[Round "7.8"]
[White "Lindholm, Marcus"]
[Black "Eriksson, Joel"]
[Result "1/2-1/2"]
[TimeControl "15 minutes + 5 seconds per move from move one (Round 1 - 4) / 90 minutes + 30 seconds per move from move one (Round 5 - 8)"]
[WhiteFideId "1743473"]
[BlackFideId "1729233"]
[WhiteElo "1666"]
[BlackElo "1949"]

1. d4 {[%clk 01:30:56]} {[%emt 00:00:02]} e6 {[%clk 01:30:51]} {[%emt
00:00:10]} 2. e4 {[%clk 01:31:02]} {[%emt 00:00:23]} b6 {[%clk 01:30:51]}
{[%emt 00:00:31]} 3. Nc3 {[%clk 01:30:46]} {[%emt 00:00:46]} Bb7 {[%clk
01:30:43]} {[%emt 00:00:39]} 4. a3 {[%clk 01:26:07]} {[%emt 00:05:09]} Nf6
{[%clk 01:29:14]} {[%emt 00:01:58]} 5. e5 {[%clk 01:23:18]} {[%emt 00:03:19]}
Nd5 {[%clk 01:24:40]} {[%emt 00:05:04]} 6. Nxd5 {[%clk 01:22:09]} {[%emt
00:01:38]} Bxd5 {[%clk 01:21:35]} {[%emt 00:03:36]} 7. Nf3 {[%clk 01:19:38]}
{[%emt 00:03:01]} d6 {[%clk 01:18:54]} {[%emt 00:03:11]} 8. Bb5+ {[%clk
01:17:24]} {[%emt 00:02:44]} c6 {[%clk 01:09:07]} {[%emt 00:10:17]} 9. Ba4
{[%clk 01:13:16]} {[%emt 00:04:38]} b5 {[%clk 01:06:42]} {[%emt 00:02:55]} 10.
Bb3 {[%clk 01:13:32]} {[%emt 00:00:14]} Bxb3 {[%clk 01:06:34]} {[%emt
00:00:38]} 11. cxb3 {[%clk 01:13:35]} {[%emt 00:00:26]} d5 {[%clk 01:06:26]}
{[%emt 00:00:38]} 12. O-O {[%clk 01:12:54]} {[%emt 00:01:11]} c5 {[%clk
01:04:24]} {[%emt 00:02:33]} 13. Bg5 {[%clk 01:11:22]} {[%emt 00:02:01]} Qb6
{[%clk 01:01:29]} {[%emt 00:03:25]} 14. dxc5 {[%clk 01:09:27]} {[%emt
00:02:25]} Bxc5 {[%clk 01:00:21]} {[%emt 00:01:37]} 15. b4 {[%clk 01:09:39]}
{[%emt 00:00:18]} Be7 {[%clk 00:59:37]} {[%emt 00:01:15]} 16. Bxe7 {[%clk
01:09:08]} {[%emt 00:01:00]} Kxe7 {[%clk 01:00:03]} {[%emt 00:00:04]} 17. Qd4
{[%clk 01:07:43]} {[%emt 00:01:55]} Qxd4 {[%clk 00:51:36]} {[%emt 00:08:57]} 18.
Nxd4 {[%clk 01:06:24]} {[%emt 00:01:49]} a6 {[%clk 00:52:00]} {[%emt 00:00:06]}
19. Rac1 {[%clk 01:06:19]} {[%emt 00:00:33]} Kd7 {[%clk 00:52:00]} {[%emt
00:00:32]} 20. Rc5 {[%clk 01:05:37]} {[%emt 00:01:09]} Rc8 {[%clk 00:51:56]}
{[%emt 00:00:36]} 21. Rfc1 {[%clk 01:05:50]} {[%emt 00:00:16]} Rxc5 {[%clk
00:52:17]} {[%emt 00:00:10]} 22. Rxc5 {[%clk 01:04:14]} {[%emt 00:02:06]} Ra7
{[%clk 00:52:14]} {[%emt 00:00:33]} 23. f4 {[%clk 01:03:01]} {[%emt 00:01:43]}
Rc7 {[%clk 00:51:14]} {[%emt 00:01:30]} 24. Kf2 {[%clk 01:01:14]} {[%emt
00:02:17]} Nc6 {[%clk 00:46:19]} {[%emt 00:05:25]} 25. Nxc6 {[%clk 00:59:12]}
{[%emt 00:02:31]} Rxc6 {[%clk 00:46:45]} {[%emt 00:00:05]} 26. Ke3 {[%clk
00:59:20]} {[%emt 00:00:21]} Kc7 {[%clk 00:44:41]} {[%emt 00:02:35]} 27. Kd4
{[%clk 00:59:31]} {[%emt 00:00:14]} Kb6 {[%clk 00:44:56]} {[%emt 00:00:21]} 28.
g4 {[%clk 00:57:50]} {[%emt 00:02:11]} g6 {[%clk 00:42:55]} {[%emt 00:02:31]}
29. g5 {[%clk 00:57:48]} {[%emt 00:00:31]} Rc7 {[%clk 00:41:17]} {[%emt
00:02:08]} 30. Rxc7 {[%clk 00:57:46]} {[%emt 00:00:32]} Kxc7 {[%clk 00:41:41]}
{[%emt 00:00:06]} 31. Kc5 {[%clk 00:56:41]} {[%emt 00:00:26]} 1/2-1/2

[Event "SS Manhem Chess Week 2022: Goteborg Open"]
[Site "Schackcentrum, Vegagatan 20, Gothenburg, Sweden"]
[Date "2022.08.14"]
[Round "7.9"]
[White "Ottgard, Andreas"]
[Black "Sundin, Sven-Ingvar"]
[Result "1-0"]
[TimeControl "15 minutes + 5 seconds per move from move one (Round 1 - 4) / 90 minutes + 30 seconds per move from move one (Round 5 - 8)"]
[WhiteFideId "1730592"]
[BlackFideId "1724517"]
[WhiteElo "1883"]
[BlackElo "1637"]

1. c4 {[%clk 01:30:04]} {[%emt 00:00:46]} c5 {[%clk 01:30:58]} {[%emt
00:00:12]} 2. g3 {[%clk 01:30:07]} {[%emt 00:00:27]} g6 {[%clk 01:30:54]}
{[%emt 00:00:34]} 3. Bg2 {[%clk 01:30:30]} {[%emt 00:00:07]} Bg7 {[%clk
01:31:16]} {[%emt 00:00:07]} 4. Nc3 {[%clk 01:30:54]} {[%emt 00:00:08]} Nc6
{[%clk 01:31:03]} {[%emt 00:00:41]} 5. d3 {[%clk 01:29:56]} {[%emt 00:01:28]}
Nf6 {[%clk 01:31:08]} {[%emt 00:00:25]} 6. e4 {[%clk 01:28:45]} {[%emt
00:01:42]} e5 {[%clk 01:30:24]} {[%emt 00:01:14]} 7. Nge2 {[%clk 01:28:47]}
{[%emt 00:00:28]} O-O {[%clk 01:30:01]} {[%emt 00:00:52]} 8. O-O {[%clk
01:28:30]} {[%emt 00:00:47]} d6 {[%clk 01:27:53]} {[%emt 00:02:38]} 9. h3
{[%clk 01:28:22]} {[%emt 00:00:37]} Rb8 {[%clk 01:27:13]} {[%emt 00:01:10]} 10.
Be3 {[%clk 01:23:22]} {[%emt 00:05:30]} a6 {[%clk 01:26:43]} {[%emt 00:01:01]}
11. a4 {[%clk 01:15:21]} {[%emt 00:08:31]} Be6 {[%clk 01:17:47]} {[%emt
00:09:25]} 12. Rb1 {[%clk 01:05:02]} {[%emt 00:10:49]} Qd7 {[%clk 01:17:09]}
{[%emt 00:01:07]} 13. Kh2 {[%clk 01:04:50]} {[%emt 00:00:42]} Ne8 {[%clk
01:15:06]} {[%emt 00:02:33]} 14. f4 {[%clk 01:00:26]} {[%emt 00:04:55]} f5
{[%clk 01:13:51]} {[%emt 00:01:44]} 15. Qd2 {[%clk 00:56:45]} {[%emt 00:04:11]}
b6 {[%clk 01:13:01]} {[%emt 00:01:19]} 16. b3 {[%clk 00:51:44]} {[%emt
00:05:32]} Nb4 {[%clk 01:03:53]} {[%emt 00:09:38]} 17. fxe5 {[%clk 00:45:59]}
{[%emt 00:06:15]} Bxe5 {[%clk 01:00:13]} {[%emt 00:04:10]} 18. d4 {[%clk
00:44:41]} {[%emt 00:01:48]} cxd4 {[%clk 00:56:27]} {[%emt 00:04:17]} 19. Nxd4
{[%clk 00:39:25]} {[%emt 00:05:45]} Bxd4 {[%clk 00:52:19]} {[%emt 00:01:06]} 20.
Bxd4 {[%clk 00:39:25]} {[%emt 00:04:02]} Nc6 {[%clk 00:52:31]} {[%emt
00:00:18]} 21. Be3 {[%clk 00:34:40]} {[%emt 00:05:16]} Nf6 {[%clk 00:50:27]}
{[%emt 00:02:32]} 22. Bh6 {[%clk 00:31:59]} {[%emt 00:03:12]} Rfd8 {[%clk
00:48:46]} {[%emt 00:02:11]} 23. exf5 {[%clk 00:30:43]} {[%emt 00:01:47]} Bxf5
{[%clk 00:46:44]} {[%emt 00:02:32]} 24. Rxf5 {[%clk 00:24:05]} {[%emt
00:07:08]} Qxf5 {[%clk 00:46:59]} {[%emt 00:00:15]} 25. Rf1 {[%clk 00:23:06]}
{[%emt 00:01:29]} Qe5 {[%clk 00:44:09]} {[%emt 00:03:19]} 26. Bxc6 {[%clk
00:22:54]} {[%emt 00:00:42]} Nh5 {[%clk 00:43:37]} {[%emt 00:01:03]} 27. Bd5+
{[%clk 00:14:58]} {[%emt 00:08:27]} Kh8 {[%clk 00:43:50]} {[%emt 00:00:17]} 28.
Ne4 {[%clk 00:14:22]} {[%emt 00:01:06]} Ng7 {[%clk 00:41:00]} {[%emt 00:03:21]}
29. Ng5 {[%clk 00:11:08]} {[%emt 00:03:44]} 1-0